{"text_format":"2","workbook":"xlsx","n_sheets":2,"sheets":["Kørsel","Note"],"not_rendered":{"charts":0,"images":1,"macros":0,"external_links":0,"defined_names":0,"comments":0,"pivot_tables":0},"unopened":[],"bounds":{"document_bytes":16777216,"sheet_cells":100000,"run_cost":"one","rows_first":2000,"rows_last":500,"rows_between":2000,"halvings":0,"cell_chars":16384,"cell_head_chars":4096},"cells_cut":0,"cells_raw":0,"read":"whole","date_system":"1900"}

{"sheet":"Kørsel","index":0,"n_rows":51,"n_cols":9,"rows_kept":51,"cut":false,"hidden":false,"merged":[[46,3,46,4],[48,4,48,6],[50,4,50,6],[0,0,1,8],[42,7,42,8],[41,7,41,8],[40,7,40,8],[2,0,4,0],[33,0,33,1],[2,4,2,6],[2,8,4,8],[2,7,4,7],[2,3,4,3],[2,2,4,2],[2,1,4,1],[39,7,39,8],[38,7,38,8],[37,7,37,8],[41,1,41,5],[33,4,34,6]]}
["Skattefri godtgørelser m.v."]
[]
["\nDato","\nBestemmelsessted\nog registreringsnr. på bil","\nKørte\nkm","\nUdenbys\nkampe m.v.\n(en-dags-ture mindst\n5 timer)","\nRejse med o.natn.\n(mindst 24 t. varighed)",null,null,"\nUdlæg\nfor\nklubben\niflg.\nBilag-\ndok.\nkr.","\nBemærkninger:\nformål m.v.:"]
[{"$nulls":4},"Nat-\nophold","For-\ntæring","Små-for-nøden-heder"]
[{"$nulls":4},"kr.","kr.","kr."]
[{"$nulls":7},{"$f":"E6+F6+G6","v":0}]
[{"$nulls":7},{"$f":"E7+F7+G7","v":0}]
[{"$nulls":7},0]
[{"$nulls":7},0]
[{"$nulls":7},0]
[{"$nulls":7},0]
[{"$nulls":7},0]
[{"$nulls":7},0]
[{"$nulls":7},0]
[{"$nulls":7},0]
[{"$nulls":7},0]
[{"$nulls":7},0]
[{"$nulls":7},0]
[{"$nulls":7},0]
[{"$nulls":7},0]
[{"$nulls":7},0]
[{"$nulls":7},0]
[{"$nulls":7},0]
[{"$nulls":7},0]
[{"$nulls":7},0]
[{"$nulls":7},0]
[{"$nulls":7},0]
[{"$nulls":7},0]
[{"$nulls":7},0]
[{"$nulls":7},0]
[{"$nulls":7},0]
[{"$nulls":7},0]
[{"$nulls":7},0]
["I alt for perioden:",null,{"$f":"SUM(C6:C33)","v":0},0,null,null,null,0]
["Saldo pr."]
[]
["Afregning for perioden:"]
["Befordringsgodtgørelse ",null,{"$f":"C34","v":0},"km á kr.",3.54,null,"= kr. ",{"$f":"E38*C38","v":0}]
["Merudgift til fortæring ",null,{"$f":"D34","v":0},"gange á kr.",70,null,"= kr. ",{"$f":"C39*E39","v":0}]
["Rejsegodtgørelse",{"$nulls":5},"= kr. "]
["Udlæg for klubben iflg. Bilag",{"$nulls":5},"= kr. ",{"$f":"H34","v":0}]
["Andet:",{"$nulls":5},"= kr. "]
["I alt",{"$nulls":5},"= kr. ",{"$f":"SUM(H38:I42)","v":0}]
[]
["Tidligere kørt",null,"km. i indeværende år"]
[null,null,"Reg","Kontonr."]
["Pengene skal overføres til konto:"]
[]
["Udarbejdet af:",null,null,"Underskrift:",null,null,null,"Dato:"]
[]
["Godkendt af:",null,null,"Underskrift:",null,null,null,"Dato:"]

{"sheet":"Note","index":1,"n_rows":25,"n_cols":3,"rows_kept":25,"cut":false,"hidden":false,"merged":[[24,0,24,2],[20,0,20,2],[21,0,21,2],[22,0,22,2],[23,0,23,2],[0,0,0,2],[1,0,1,2],[3,0,3,1],[18,0,18,2],[19,0,19,2],[2,0,2,2],[4,0,4,2],[5,0,5,2],[6,0,6,2],[7,0,7,2],[8,0,8,2],[10,0,11,0],[10,1,11,1],[16,0,17,0],[16,1,17,1],[16,2,17,2]]}
["Skattefri godtgørelse"]
[]
["Klubben kan udbetale skattefri godtgørelse til frivillige træner og ledere i overensstemmelse med Skatterådets takster herfor. Taksterne fremgår af Skatteministeriets \"Bekendtgørelse om udbetaling af skattefri godtgørelse til ulønnede bestyrelsesmedlemmer eller til frivillige, ulønnede medhjælpere, "]
["der yder bistand som led i foreningens skattefri virksomhed\".",null,"(Læs bekendtgørelsen)"]
[]
["EN SKATTEFRI GODTGØRELSE UDBETALES KUN EFTER FORUDGÅENDE AFTALE MED KLUBBENS BESTYRELSE OG KUN OP TIL DEN AFTALTE MAKSIMALE BELØBSSTØRRELSE."]
[]
["Takster"]
[]
["§","Type","Takst"]
[1,"Befordringsgodtgørelse ved kørsel for foreningen i egen bil eller på motorcykel (2017)","0-20.000 km: 3,54 kr. pr. km"]
[null,null,"over 20.000 km: 1,94 kr. pr. km"]
[2,"Merudgifter til fortæring ved en-dagsarrangementer, udenbys kampe, stævner m.v. af mindst 5 timers varighed","Maks. 70 kr pr. dag"]
[3,"Telefon og internetudgifter","Op til 2.350 kr./år"]
["4.1","Administrative omkostninger (kontorartikler, porto, møder mv.)","Op til 1.400 kr./år"]
["4.2","Køb, vask og vedligeholdelse af særlig beklædning (fx sportstøj) o. lign.","Op til 1.950 kr./år"]
["4.3","Befordringsgodtgørelse cykel, knallert, EU-knallert eller scooter","0,52 kr. pr. km"]
[]
[]
["Udbetaling af skattefri godtgørelse er for de frivillige, der ikke modtager løn for deres arbejde i foreningen. De ulønnede trænere og ledere kan således på en række områder - og uden at vise bilag - få kompensation for deres udgifter til telefon, internet, administration (fx kontorartikler, porto, møder), indkøb/vask af sportstøj m.m."]
[]
["Kørselsgodtgørelse"]
["Skal klubben udbetale skattefri kørselsgodtgørelse til frivillige trænere og ledere, skal der udarbejdes et kørselsregnskab. På ark \"kørsel\" findes et skema, som kan bruges hertil. Skemaet skal afleveres til kassereren, som står for udbetalingen."]
[]
["Den enkelte træner/leder er selv ansvarlig for udarbejdelse af eget kørselsregskab. Dette skal være kassereren i hænde senest 1. maj for kørsel i den foregående sæson. Det er dog også muligt at få udbetalt penge halvårligt. I såfald skal der aflægges kørselsregnskabregnskab senest 1. dec. Penge udbetales umiddelbart herefter."]